Workbook

Sheet Calc
E3: GATEWAY CAPACITY TEST CALCULATOR V2024.1 | X3: GATEWAY USE ONLY
X4: DEAL No. | AC4: NAME:
E5: Released Date: 4 April 2024
E6: Field Key | G6: Mandatory and must be completed | M6: Optional input fields | P6: Output fields and can't be completed
X7: NO | AF7: NO
C9: LOAN DETAILS | S9: Bridging | X9: No | AC9: Guarantee | AF9: No
D10: Loan | G10: Loan Type | H10: Loan Amount ($) | K10: Term (mths) | M10: Rate % p.a. | N10: Int Only Term | P10: Indicative Payment (mthly)
C12: 1 | N12: 0 | P12: =IF(AND(D12<>"",G12<>"",H12<>"",K12<>"",M12<>"",N12<>""),IF(N12>0,M12/12*H12,PMT(M12/12, K12,-H12)),"") ->  | S12: Total New Loans | X12: =IF(SUM(H12:J17)=0,0,SUM(H12:J17)) -> 0 | AC12: Security Value | AF12: 0
C14: 2 | N14: 0 | P14: =IF(AND(H14<>"",K14<>"",M14<>""),IF(N14>0,M14/12*H14,PMT(M14/12, K14,-H14)),"") ->  | S14: Existing GBL Loans | X14: 0 | AC14: LVR | AF14: =IF(AF12=0,0,IF(OR(AF9="Family Pledge",AF9="FHLDS"),80%,X16/AF12)) -> 0
C16: 3 | N16: 0 | P16: =IF(AND(H16<>"",K16<>"",M16<>""),IF(N16>0,M16/12*H16,PMT(M16/12,K16,-H16)),"") ->  | S16: Total Loans | X16: =SUM(X12,X14) -> 0 | AC16: LMI | AF16: =IF(AF14>80%,"YES","NO") -> NO
C21: INCOME (Annual) | G21: APPLICANT 1 | J21: APPLICANT 2 | M21: APPLICANT 3 | P21: APPLICANT 4 | S21: ANNUAL TOTALS | X21: LIVING EXPENSES | AC21: =IF(AND(AA23="Partnered",AH23="N/A"),"CHECK STATUS AND PARTNER ENTRY",IF(AND(AA24="Partnered",AH24="N/A"),"CHECK STATUS AND PARTNER ENTRY",IF(AND(AA25="Partnered",AH25="N/A"),"CHECK STATUS AND PARTNER ENTRY",IF(AND(AA26="Parntered",AH26="N/A"),"CHECK STATUS AND PARTNER ENTRY",IF(AND(AH23="App 2",$AH$24<>"App 1"),"CHECK STATUS AND PARTNER ENTRY",IF(AND(AH23="App 3",$AH$25<>"App 1"),"CHECK STATUS AND PARTNER ENTRY",IF(AND(AH23="App 4",$AH$26<>"App 1"),"CHECK STATUS AND PARTNER ENTRY",IF(AND(AH24="App 1",$AH$23<>"App 2"),"CHECK STATUS AND PARTNER ENTRY",IF(AND(AH24="App 3",$AH$25<>"App 2"),"CHECK STATUS AND PARTNER ENTRY",IF(AND(AH24="App 4",$AH$26<>"App 2"),"CHECK STATUS AND PARTNER ENTRY",IF(AND(AH24="App 1",$AH$23<>"App 2"),"CHECK STATUS AND PARTNER ENTRY",IF(AND(AH25="App 1",$AH$23<>"App 3"),"CHECK STATUS AND PARTNER ENTRY",IF(AND(AH25="App 2",$AH$24<>"App 3"),"CHECK STATUS AND PARTNER ENTRY",IF(AND(AH25="App 4",$AH$26<>"App 3"),"CHECK STATUS AND PARTNER ENTRY",IF(AND(AH26="App 1",$AH$23<>"App 4"),"CHECK STATUS AND PARTNER ENTRY",IF(AND(AH26="App 2",$AH$24<>"App 4"),"CHECK STATUS AND PARTNER ENTRY",IF(AND(AH26="App 3",$AH$25<>"App 4"),"CHECK STATUS AND PARTNER ENTRY",""))))))))))))))))) -> 
C22: Full time/Part time/Casual | G22: 0 | J22: 0 | M22: 0 | P22: 0 | S22: =G22+J22+M22+P22 -> 0 | AA22: Status | AD22: Dependents | AH22: Partner
C23: Contract Employment | G23: 0 | H23: 1 | J23: 0 | K23: 1 | M23: 0 | N23: 1 | P23: 0 | Q23: 1 | S23: =G23*H23+J23*K23+M23*N23+P23*Q23 -> 0 | X23: Applicant 1 | AA23: N/A | AE23: 0 | AH23: N/A
C24: Bonuses/Commission | G24: 0 | H24: 0.8 | J24: 0 | K24: 0.8 | M24: 0 | N24: 0.8 | P24: 0 | Q24: 0.8 | S24: =G24*H24+J24*K24+M24*N24+P24*Q24 -> 0 | X24: Applicant 2 | AA24: N/A | AE24: 0 | AH24: N/A
C25: Overtime/Allowances/Other | G25: 0 | H25: 0.8 | J25: 0 | K25: 0.8 | M25: 0 | N25: 0.8 | P25: 0 | Q25: 0.8 | S25: 0 | X25: Applicant 3 | AA25: N/A | AE25: 0 | AH25: N/A
D26: Discounted Rental Income | G26: =Rental!G20 -> 0 | J26: =Rental!H20 -> 0 | M26: =Rental!I20 -> 0 | P26: =Rental!J20 -> 0 | S26: =G26+J26+M26+P26 -> 0 | X26: Applicant 4 | AA26: N/A | AE26: 0 | AH26: N/A
C27: Annual Salary from Business | G27: =SE!H37 -> 0 | J27: =SE!J37 -> 0 | M27: =SE!L37 -> 0 | P27: =SE!N37 -> 0 | S27: 0
C28: Attributed Business Cash Flow | G28: =SE!H39 -> 0 | J28: =SE!J39 -> 0 | M28: =SE!L39 -> 0 | P28: =SE!N39 -> 0 | S28: 0 | X28: Declared Living Expenses (monthly) | AF28: 0
D29: Plus Non-Taxable Income | S29: 0
C30: TOTAL DISCOUNTED INCOME | G30: =G22+(G23*H23)+(G24*H24)+(G25*H25)+G26+G27+G28+G29 -> 0 | J30: =J22+(J23*K23)+(J24*K24)+(J25*K25)+J26+J27+J28+J29 -> 0 | M30: =M22+(M23*N23)+(M24*N24)+(M25*N25)+M26+M27+M28+M29 -> 0 | P30: =P22+(P23*Q23)+(P24*Q24)+(P25*Q25)+P26+P27+P28+P29 -> 0 | S30: =SUM(G30:Q30) -> 0 | X30: Declared Other Expenses (monthly) | AF30: 0
C34: COMMITMENTS (Remaining after Settlement)
G35: Limit | J35: Remaining Term (months) | M35: Assessment Rate | P35: Payment (monthly) | S35: ANNUAL TOTALS | X35: Annual Benchmark | AA35: =IF(AC21="Check status and partner entry",0,'HEM Table'!O89) -> 0 | AD35: Annual HEM Declared | AG35: =AF28*12 -> 0
C36: Existing Home Loan | G36: 0 | J36: 0 | M36: ='Calc Data'!C5 -> 0.08 | P36: 0 | S36: =IFERROR((IF(OR(G36=FALSE,G36=0),0,IF(OR(J36=FALSE,J36=0,P36=FALSE,P36=0),"Missing value",MAX(PMT(M36/12,J36,-G36),P36)))*12),"Missing Value") -> 0 | AM36: =ROUNDUP(NPER(M36/12,P36,-G36,0,1),0) ->  | AN36: =IFERROR((IF(OR(G36=FALSE,G36=0),0,IF(OR(J36=FALSE,J36=0,P36=FALSE,P36=0),"Missing value",PMT(MAX('Calc Data'!$C$5,M36+'Calc Data'!$C$4)/12,MIN(J36,ROUNDUP(NPER(M36/12,P36,-G36,0,1),0)),-G36))))*12,"Missing Value") -> 0
C37: Existing Home Loan | G37: 0 | J37: 0 | M37: ='Calc Data'!C5 -> 0.08 | P37: 0 | S37: =IFERROR((IF(OR(G37=FALSE,G37=0),0,IF(OR(J37=FALSE,J37=0,P37=FALSE,P37=0),"Missing value",MAX(PMT(M37/12,J37,-G37),P37)))*12),"Missing Value") -> 0 | X37: Expenses Used in Assessment | AG37: =IF(AC21="Check status and partner entry",0,'HEM Table'!O92) -> 0
C38: Existing Home Loan | G38: 0 | J38: 0 | M38: ='Calc Data'!C5 -> 0.08 | P38: 0 | S38: 0 | X38: ASSESSMENT RESULT
C39: Existing Commercial Loan | G39: 0 | J39: 0 | M39: ='Calc Data'!C3 -> 0.08 | P39: 0 | S39: 0 | X39: =IF(OR(S36="Missing Value",S37="Missing Value",S38="Missing Value",S39="Missing Value",S40="Missing Limit",S41="Missing Limit",S44="Missing Limit"),"MISSING VALUES IN COMMITMENTS",IF(OR(Location!G6="",Location!G6="ERROR"),"PLEASE ENTER AT LEAST ONE SECURITY LOCATION",IF(AND(OR(ISNUMBER(SEARCH("Equitismart",Calc!D12))),N12<>0),"INT ONLY TERM MUST BE ZERO FOR EQUITISMART",IF(AND(OR(ISNUMBER(SEARCH("Equitismart",Calc!D14))),N14<>0),"INT ONLY TERM MUST BE ZERO FOR EQUITISMART",IF(AND(OR(ISNUMBER(SEARCH("Equitismart",Calc!D16))),N16<>0),"INT ONLY TERM MUST BE ZERO FOR EQUITISMART",IF(AND(OR(ISNUMBER(SEARCH("Equitismart",Calc!D12)),ISNUMBER(SEARCH("Land",Calc!D12)),ISNUMBER(SEARCH("Equitismart",Calc!D14)),ISNUMBER(SEARCH("Land",Calc!D14)),ISNUMBER(SEARCH("Equitismart",Calc!D14)),ISNUMBER(SEARCH("Land",Calc!D14))),Calc!AF14>0.8),"MAX ALLOWABLE LVR FOR PRODUCT 80%",IF(AND(OR(Calc!N12<>0,Calc!N14<>0,Calc!N16<>0),Calc!AF14>0.9,NOT(D12="Construction")),"I/O LOAN - MAX ALLOWABLE LVR 90%",IF(Calc!AF14>0.95,"MAX ALLOWABLE LVR (including LMI) IS 95%",IF(P12="","PLEASE ENTER NEW LOAN DETAILS",IF(AF12=0,"A SECURITY VALUE MUST BE ENTERED",IF(AA35=0,"PLEASE ENTER LIVING EXPENSE INFORMATION",IF(AG35=0,"PLEASE ENTER DECLARED LIVING EXPENSES",IF(OR(AND(G22<>0,H22<>"Please Select"),AND(G23<>0,H23<>"Please Select"),AND(G24<>0,H24<>"Please Select"),AND(G25<>0,H25<>"Please Select"),G26<>0,G27<>0,G28<>0,G29<>0),"FIELDS COMPLETED","PLEASE ENTER INCOME DETAILS FOR APPLICANT 1"))))))))))))) -> PLEASE ENTER AT LEAST ONE SECURITY LOCATION
C40: Personal Loan | G40: 0 | J40: 0 | M40: ='Calc Data'!F2+'Calc Data'!C4 -> 0.1459 | P40: 0 | S40: =IFERROR((IF(OR(G40=FALSE,G40=0),0,IF(OR(J40=FALSE,J40=0,P40=FALSE,P40=0),"Missing value",MAX(PMT(M40/12,J40,-G40),P40)))*12),"Missing Value") -> 0 | X40: =IFERROR(IF(X39="FIELDS COMPLETED",IF(AND(AF41<=6.5,'Calc Data'!C49>=0),"SERVICING MET",IF(AND(AF41<=6.5,'Calc Data'!C39>0),"SERVICING REFER","SERVICING NOT MET")),""),"") ->  | AD40: NIS | AF40: =IFERROR(IF(X39<>"FIELDS COMPLETED","",ROUND((S30-SUM('Calc Data'!$C$37,'Calc Data'!$F$37,'Calc Data'!$I$37,'Calc Data'!$L$37)-'HEM Table'!O92-S50)/12,2)),"") -> 
C41: Car Loan | G41: 0 | J41: 0 | M41: ='Calc Data'!F3+'Calc Data'!C4 -> 0.1004 | P41: 0 | S41: 0 | AD41: DTI | AF41: =IFERROR(IF(X39<>"FIELDS COMPLETED","",(X12+SUM(G36:H42)+G44+G45)/('Calc Data'!C25+'Calc Data'!F25+'Calc Data'!I25+'Calc Data'!L25)),"") -> 
C42: Lease/HP | G42: 0 | P42: 0 | S42: =IFERROR(IF(AND(OR(G42=FALSE,G42=0),OR(P42=TRUE,P42<>0)),"Missing Limit",P42*12),0) -> 0 | X42: INDICATIVE MAXIMUM LOAN AMOUNT* | AD42: *The Indicative maximum loan amount is calculated based on product type and residual P&I term of Loan 1.
M43: Rent | P43: 0 | S43: =IFERROR(P43*12,0) -> 0
C44: Other (inc. HECS/HELP) | G44: 0 | P44: 0 | S44: =IFERROR(IF(AND(OR(G44=FALSE,G44=0),OR(P44=TRUE,P44<>0)),"Missing Limit",P44*12),0) -> 0 | X44: =IF(X39<>"FIELDS COMPLETED","",('Calc Data'!C47)) -> 
C45: Total Credit Card/BNPL Limits | G45: 0 | S45: =IF(G45="",0,G45*0.0382*12) -> 0
M46: Monthly LMI Premium | P46: 0 | S46: =IFERROR(P46*12,0) -> 0 | X46: Important Information: The assessment result doesn't constitute a loan offer, each deal must still be assessed by an Underwriter. We will constructively assess applications at the margin with strong supporting mitigants. Should you have any doubt, contact your Gateway representative or email loans@gatewaybank.com.au to discuss in more detail.
P47: GBL New Loan - 1 | S47: =IF($P$12="","",IF(ISNUMBER(IF($X$9="Yes",MAX('Calc Data'!$C$5,$M$12+'Calc Data'!$C$4)/12*$H$12,PMT(MAX('Calc Data'!$C$5,$M$12+'Calc Data'!$C$4)/12,($K$12-$N$12),-$H$12)))=FALSE,"",IF(AND($X$9="Yes",$N$12<>0), MAX('Calc Data'!$C$5,$M$12+'Calc Data'!$C$4)/12*$H$12,PMT(MAX('Calc Data'!$C$5,$M$12+'Calc Data'!$C$4)/12,($K$12-$N$12),-$H$12)))*12) -> 
P48: GBL New Loan - 2 | S48: =IF($P$14="","",IF(ISNUMBER(IF($X$9="Yes",MAX('Calc Data'!$C$5,$M$14+'Calc Data'!$C$4)/12*$H$14,PMT(MAX('Calc Data'!$C$5,$M$14+'Calc Data'!$C$4)/12,($K$14-$N$14),-$H$14)))=FALSE,"",IF(AND($X$9="Yes",$N$14<>0), MAX('Calc Data'!$C$5,$M$14+'Calc Data'!$C$4)/12*$H$14,PMT(MAX('Calc Data'!$C$5,$M$14+'Calc Data'!$C$4)/12,($K$14-$N$14),-$H$14)))*12) -> 
P49: GBL New Loan - 3 | S49: =IF($P$16="","",IF(ISNUMBER(IF($X$9="Yes",MAX('Calc Data'!$C$5,$M$16+'Calc Data'!$C$4)/12*$H$16,PMT(MAX('Calc Data'!$C$5,$M$16+'Calc Data'!$C$4)/12,($K$16-$N$16),-$H$16)))=FALSE,"",IF(AND($X$9="Yes",$N$16<>0), MAX('Calc Data'!$C$5,$M$16+'Calc Data'!$C$4)/12*$H$16,PMT(MAX('Calc Data'!$C$5,$M$16+'Calc Data'!$C$4)/12,($K$16-$N$16),-$H$16)))*12) -> 
P50: Total Annual Repayments | S50: =SUM(S36:T49) -> 0
AF52: =NOW() -> 2024-04-03T15:05:08.790

Sheet Location
C2: LOCATION CATEGORY TOOL
E5: Step1: Select property type | F5: Step 2: Enter postcode | G5: Category | I5: Additional information
C6: Security 1 | G6: =IFERROR(IF(OR(E6=0,F6=0),"",INDEX(Report!$D$2:$D$5000,MATCH(1,(F6=Report!$A$2:$A$5000)*(E6=Report!$B$2:$B$5000),0))),"ERROR") ->  | I6: =IF(G6="","",IF(G6=1,"Standard policy applies", IF(G6=2,"Maximum LVR of 80%",IF(G6=3,"Maximum LVR of 70%","Location outside of policy")))) -> 
C7: Security 2 | G7: =IFERROR(IF(OR(E7=0,F7=0),"",INDEX(Report!$D$2:$D$5000,MATCH(1,(F7=Report!$A$2:$A$5000)*(E7=Report!$B$2:$B$5000),0))),"ERROR") ->  | I7: =IF(G7="","",IF(G7=1,"Standard policy applies", IF(G7=2,"Maximum LVR of 80%",IF(G7=3,"Maximum LVR of 70%","Location outside of policy")))) -> 
C8: Security 3 | G8: =IFERROR(IF(OR(E8=0,F8=0),"",INDEX(Report!$D$2:$D$5000,MATCH(1,(F8=Report!$A$2:$A$5000)*(E8=Report!$B$2:$B$5000),0))),"ERROR") -> 
C9: Security 4 | G9: =IFERROR(IF(OR(E9=0,F9=0),"",INDEX(Report!$D$2:$D$5000,MATCH(1,(F9=Report!$A$2:$A$5000)*(E9=Report!$B$2:$B$5000),0))),"ERROR") -> 
C11: Notes: | E11: * House: torrens title property
E13: * Unit: strata, company, community or another title that denotes a property within
E14: a larger development

Sheet Report (hidden)
A1: structure_code | B1: property_type | C1: state_name | D1: risk_category | G1: Version | H1: 2024-01-01
A2: 800 | B2: House | C2: Northern Territory | D2: 3
A3: 800 | B3: Unit | C3: Northern Territory | D3: 3
A4: 810 | B4: House | C4: Northern Territory | D4: 2
A5: 810 | B5: Unit | C5: Northern Territory | D5: 3
A6: 812 | B6: House | C6: Northern Territory | D6: 2
A7: 812 | B7: Unit | C7: Northern Territory | D7: 3
A8: 820 | B8: House | C8: Northern Territory | D8: 2
A9: 820 | B9: Unit | C9: Northern Territory | D9: 3
A10: 822 | B10: House | C10: Northern Territory | D10: 2
A11: 822 | B11: Unit | C11: Northern Territory | D11: 3
A12: 828 | B12: House | C12: Northern Territory | D12: 2
A13: 828 | B13: Unit | C13: Northern Territory | D13: 3
A14: 829 | B14: House | C14: Northern Territory | D14: 4
A15: 829 | B15: Unit | C15: Northern Territory | D15: 4
A16: 830 | B16: House | C16: Northern Territory | D16: 2
A17: 830 | B17: Unit | C17: Northern Territory | D17: 3
A18: 832 | B18: House | C18: Northern Territory | D18: 2
A19: 832 | B19: Unit | C19: Northern Territory | D19: 3
A20: 834 | B20: House | C20: Northern Territory | D20: 2
A21: 834 | B21: Unit | C21: Northern Territory | D21: 4
A22: 835 | B22: House | C22: Northern Territory | D22: 2
A23: 835 | B23: Unit | C23: Northern Territory | D23: 4
A24: 836 | B24: House | C24: Northern Territory | D24: 2
A25: 836 | B25: Unit | C25: Northern Territory | D25: 4
A26: 837 | B26: House | C26: Northern Territory | D26: 2
A27: 838 | B27: House | C27: Northern Territory | D27: 2
A28: 838 | B28: Unit | C28: Northern Territory | D28: 4
A29: 839 | B29: House | C29: Northern Territory | D29: 3
A30: 839 | B30: Unit | C30: Northern Territory | D30: 3
A31: 840 | B31: House | C31: Northern Territory | D31: 4
A32: 841 | B32: House | C32: Northern Territory | D32: 3
A33: 845 | B33: House | C33: Northern Territory | D33: 4
A34: 845 | B34: Unit | C34: Northern Territory | D34: 4
A35: 846 | B35: House | C35: Northern Territory | D35: 3
A36: 846 | B36: Unit | C36: Northern Territory | D36: 4
A37: 847 | B37: House | C37: Northern Territory | D37: 4
A38: 847 | B38: Unit | C38: Northern Territory | D38: 4
A39: 850 | B39: House | C39: Northern Territory | D39: 4
A40: 850 | B40: Unit | C40: Northern Territory | D40: 4
A41: 852 | B41: House | C41: Northern Territory | D41: 4
A42: 852 | B42: Unit | C42: Northern Territory | D42: 4
A43: 853 | B43: House | C43: Northern Territory | D43: 4
A44: 853 | B44: Unit | C44: Northern Territory | D44: 4
A45: 854 | B45: House | C45: Northern Territory | D45: 4
A46: 854 | B46: Unit | C46: Northern Territory | D46: 4
A47: 860 | B47: House | C47: Northern Territory | D47: 4
A48: 860 | B48: Unit | C48: Northern Territory | D48: 4
A49: 862 | B49: House | C49: Northern Territory | D49: 4
A50: 862 | B50: Unit | C50: Northern Territory | D50: 4
A51: 870 | B51: House | C51: Northern Territory | D51: 4
A52: 870 | B52: Unit | C52: Northern Territory | D52: 4
A53: 872 | B53: House | C53: Northern Territory | D53: 4
A54: 872 | B54: Unit | C54: Northern Territory | D54: 4
A55: 873 | B55: House | C55: Northern Territory | D55: 3
A56: 873 | B56: Unit | C56: Northern Territory | D56: 4
A57: 874 | B57: House | C57: Northern Territory | D57: 4
A58: 874 | B58: Unit | C58: Northern Territory | D58: 4
A59: 875 | B59: House | C59: Northern Territory | D59: 4
A60: 875 | B60: Unit | C60: Northern Territory | D60: 4
A61: 880 | B61: House | C61: Northern Territory | D61: 4
A62: 880 | B62: Unit | C62: Northern Territory | D62: 4
A63: 885 | B63: House | C63: Northern Territory | D63: 4
A64: 885 | B64: Unit | C64: Northern Territory | D64: 4
A65: 886 | B65: House | C65: Northern Territory | D65: 4
A66: 886 | B66: Unit | C66: Northern Territory | D66: 4
A67: 2000 | B67: House | C67: New South Wales | D67: 2
A68: 2000 | B68: Unit | C68: New South Wales | D68: 2
A69: 2007 | B69: House | C69: New South Wales | D69: 1
A70: 2007 | B70: Unit | C70: New South Wales | D70: 2
A71: 2008 | B71: House | C71: New South Wales | D71: 1
A72: 2008 | B72: Unit | C72: New South Wales | D72: 2
A73: 2009 | B73: House | C73: New South Wales | D73: 2
A74: 2009 | B74: Unit | C74: New South Wales | D74: 2
A75: 2010 | B75: House | C75: New South Wales | D75: 1
A76: 2010 | B76: Unit | C76: New South Wales | D76: 2
A77: 2011 | B77: House | C77: New South Wales | D77: 1
A78: 2011 | B78: Unit | C78: New South Wales | D78: 1
A79: 2015 | B79: House | C79: New South Wales | D79: 1
A80: 2015 | B80: Unit | C80: New South Wales | D80: 1
A81: 2016 | B81: House | C81: New South Wales | D81: 1
A82: 2016 | B82: Unit | C82: New South Wales | D82: 2
A83: 2017 | B83: House | C83: New South Wales | D83: 1
A84: 2017 | B84: Unit | C84: New South Wales | D84: 2
A85: 2018 | B85: House | C85: New South Wales | D85: 1
A86: 2018 | B86: Unit | C86: New South Wales | D86: 1
A87: 2019 | B87: House | C87: New South Wales | D87: 1
A88: 2019 | B88: Unit | C88: New South Wales | D88: 2
A89: 2020 | B89: House | C89: New South Wales | D89: 1
A90: 2020 | B90: Unit | C90: New South Wales | D90: 2
A91: 2021 | B91: House | C91: New South Wales | D91: 1
A92: 2021 | B92: Unit | C92: New South Wales | D92: 1
A93: 2022 | B93: House | C93: New South Wales | D93: 1
A94: 2022 | B94: Unit | C94: New South Wales | D94: 2
A95: 2023 | B95: House | C95: New South Wales | D95: 1
A96: 2023 | B96: Unit | C96: New South Wales | D96: 2
A97: 2024 | B97: House | C97: New South Wales | D97: 1
A98: 2024 | B98: Unit | C98: New South Wales | D98: 2
A99: 2025 | B99: House | C99: New South Wales | D99: 1
A100: 2025 | B100: Unit | C100: New South Wales | D100: 2
A101: 2026 | B101: House | C101: New South Wales | D101: 1
A102: 2026 | B102: Unit | C102: New South Wales | D102: 2
A103: 2027 | B103: House | C103: New South Wales | D103: 1
A104: 2027 | B104: Unit | C104: New South Wales | D104: 2
A105: 2028 | B105: House | C105: New South Wales | D105: 1
A106: 2028 | B106: Unit | C106: New South Wales | D106: 2
A107: 2029 | B107: House | C107: New South Wales | D107: 1
A108: 2029 | B108: Unit | C108: New South Wales | D108: 2
A109: 2030 | B109: House | C109: New South Wales | D109: 1
A110: 2030 | B110: Unit | C110: New South Wales | D110: 2
A111: 2031 | B111: House | C111: New South Wales | D111: 1
A112: 2031 | B112: Unit | C112: New South Wales | D112: 2
A113: 2032 | B113: House | C113: New South Wales | D113: 1
A114: 2032 | B114: Unit | C114: New South Wales | D114: 2
A115: 2033 | B115: House | C115: New South Wales | D115: 1
A116: 2033 | B116: Unit | C116: New South Wales | D116: 2
A117: 2034 | B117: House | C117: New South Wales | D117: 1
A118: 2034 | B118: Unit | C118: New South Wales | D118: 2
A119: 2035 | B119: House | C119: New South Wales | D119: 1
A120: 2035 | B120: Unit | C120: New South Wales | D120: 2
A121: 2036 | B121: House | C121: New South Wales | D121: 1
A122: 2036 | B122: Unit | C122: New South Wales | D122: 2
A123: 2037 | B123: House | C123: New South Wales | D123: 1
A124: 2037 | B124: Unit | C124: New South Wales | D124: 2
A125: 2038 | B125: House | C125: New South Wales | D125: 1
A126: 2038 | B126: Unit | C126: New South Wales | D126: 2
A127: 2039 | B127: House | C127: New South Wales | D127: 1
A128: 2039 | B128: Unit | C128: New South Wales | D128: 2
A129: 2040 | B129: House | C129: New South Wales | D129: 1
A130: 2040 | B130: Unit | C130: New South Wales | D130: 1
A131: 2041 | B131: House | C131: New South Wales | D131: 1
A132: 2041 | B132: Unit | C132: New South Wales | D132: 2
A133: 2042 | B133: House | C133: New South Wales | D133: 1
A134: 2042 | B134: Unit | C134: New South Wales | D134: 2
A135: 2043 | B135: House | C135: New South Wales | D135: 1
A136: 2043 | B136: Unit | C136: New South Wales | D136: 2
A137: 2044 | B137: House | C137: New South Wales | D137: 1
A138: 2044 | B138: Unit | C138: New South Wales | D138: 2
A139: 2045 | B139: House | C139: New South Wales | D139: 1
A140: 2045 | B140: Unit | C140: New South Wales | D140: 2
A141: 2046 | B141: House | C141: New South Wales | D141: 1
A142: 2046 | B142: Unit | C142: New South Wales | D142: 2
A143: 2047 | B143: House | C143: New South Wales | D143: 1
A144: 2047 | B144: Unit | C144: New South Wales | D144: 2
A145: 2048 | B145: House | C145: New South Wales | D145: 1
A146: 2048 | B146: Unit | C146: New South Wales | D146: 2
A147: 2049 | B147: House | C147: New South Wales | D147: 1
A148: 2049 | B148: Unit | C148: New South Wales | D148: 2
A149: 2050 | B149: House | C149: New South Wales | D149: 1
A150: 2050 | B150: Unit | C150: New South Wales | D150: 2
A151: 2060 | B151: House | C151: New South Wales | D151: 1
A152: 2060 | B152: Unit | C152: New South Wales | D152: 2
A153: 2061 | B153: House | C153: New South Wales | D153: 1
A154: 2061 | B154: Unit | C154: New South Wales | D154: 2
A155: 2062 | B155: House | C155: New South Wales | D155: 1
A156: 2062 | B156: Unit | C156: New South Wales | D156: 2
A157: 2063 | B157: House | C157: New South Wales | D157: 1
A158: 2063 | B158: Unit | C158: New South Wales | D158: 1
A159: 2064 | B159: House | C159: New South Wales | D159: 1
A160: 2064 | B160: Unit | C160: New South Wales | D160: 1
A161: 2065 | B161: House | C161: New South Wales | D161: 1
A162: 2065 | B162: Unit | C162: New South Wales | D162: 2
A163: 2066 | B163: House | C163: New South Wales | D163: 1
A164: 2066 | B164: Unit | C164: New South Wales | D164: 2
A165: 2067 | B165: House | C165: New South Wales | D165: 1
A166: 2067 | B166: Unit | C166: New South Wales | D166: 2
A167: 2068 | B167: House | C167: New South Wales | D167: 1
A168: 2068 | B168: Unit | C168: New South Wales | D168: 2
A169: 2069 | B169: House | C169: New South Wales | D169: 1
A170: 2069 | B170: Unit | C170: New South Wales | D170: 2
A171: 2070 | B171: House | C171: New South Wales | D171: 1
A172: 2070 | B172: Unit | C172: New South Wales | D172: 2
A173: 2071 | B173: House | C173: New South Wales | D173: 1
A174: 2071 | B174: Unit | C174: New South Wales | D174: 2
A175: 2072 | B175: House | C175: New South Wales | D175: 1
A176: 2072 | B176: Unit | C176: New South Wales | D176: 2
A177: 2073 | B177: House | C177: New South Wales | D177: 1
A178: 2073 | B178: Unit | C178: New South Wales | D178: 2
A179: 2074 | B179: House | C179: New South Wales | D179: 1
A180: 2074 | B180: Unit | C180: New South Wales | D180: 1
A181: 2075 | B181: House | C181: New South Wales | D181: 1
A182: 2075 | B182: Unit | C182: New South Wales | D182: 1
A183: 2076 | B183: House | C183: New South Wales | D183: 1
A184: 2076 | B184: Unit | C184: New South Wales | D184: 2
A185: 2077 | B185: House | C185: New South Wales | D185: 1
A186: 2077 | B186: Unit | C186: New South Wales | D186: 2
A187: 2079 | B187: House | C187: New South Wales | D187: 1
A188: 2079 | B188: Unit | C188: New South Wales | D188: 2
A189: 2080 | B189: House | C189: New South Wales | D189: 1
A190: 2080 | B190: Unit | C190: New South Wales | D190: 3
A191: 2081 | B191: House | C191: New South Wales | D191: 1
A192: 2081 | B192: Unit | C192: New South Wales | D192: 3
A193: 2082 | B193: House | C193: New South Wales | D193: 1
A194: 2082 | B194: Unit | C194: New South Wales | D194: 2
A195: 2083 | B195: House | C195: New South Wales | D195: 2
A196: 2083 | B196: Unit | C196: New South Wales | D196: 3
A197: 2084 | B197: House | C197: New South Wales | D197: 1
A198: 2084 | B198: Unit | C198: New South Wales | D198: 3
A199: 2085 | B199: House | C199: New South Wales | D199: 1
A200: 2085 | B200: Unit | C200: New South Wales | D200: 2
... 4663 more rows

Sheet Rental
D4: RENTAL INCOME & NEGATIVE GEARING CALCULATOR | K4: Ownership Percentage | U4: APP 1 | X4: APP 2 | AA4: APP 3 | AD4: APP 4
E6: Investment Property address | F6: Type | G6: Rental Income | H6: Frequency | I6: Loan Amount | J6: Interest Rate | K6: APP 1 | L6: APP 2 | M6: APP 3 | N6: APP 4 | O6: Total OP% | T6: DR | U6: ARI | V6: Interest | W6: RI | X6: ARI | Y6: Interest | Z6: RI | AA6: ARI | AB6: Interest | AC6: RI | AD6: ARI | AE6: Interest | AF6: RI
D7: Property 1 | H7: Please Select | O7: =IF(SUM(K7:N7)=0,"",SUM(K7:N7)) ->  | T7: =IF(F7="Residential long-term",0.8,IF(F7="Residential short-term",0.7,IF(F7="Commercial",0.7,0))) -> 0 | U7: =IF(O7<>100%,0,IF(H7="Please Select", 0,IF(H7="Weekly",G7*52*K7*T7,IF(H7="Fortnightly",G7*26*K7*T7,IF(H7="Monthly",G7*12*K7*T7,G7*K7*T7))))) -> 0 | V7: =IF(O7<>100%,0,I7*J7*K7) -> 0 | W7: =IF(O7<>100%,0,IF(H7="Please Select", 0,IF(H7="Weekly",G7*52*K7,IF(H7="Fortnightly",G7*26*K7,IF(H7="Monthly",G7*12*K7,G7*K7))))) -> 0 | X7: =IF(O7<>100%,0,IF(H7="Please Select", 0,IF(H7="Weekly",G7*52*L7*T7,IF(H7="Fortnightly",G7*26*L7*T7,IF(H7="Monthly",G7*12*L7*T7,G7*L7*T7))))) -> 0 | Y7: =IF(O7<>100%,0,I7*J7*L7) -> 0 | Z7: =IF(O7<>100%,0,IF(H7="Please Select", 0,IF(H7="Weekly",G7*52*L7,IF(H7="Fortnightly",G7*26*L7,IF(H7="Monthly",G7*12*L7,G7*L7))))) -> 0 | AA7: =IF(O7<>100%,0,IF(H7="Please Select", 0,IF(H7="Weekly",G7*52*M7*T7,IF(H7="Fortnightly",G7*26*M7*T7,IF(H7="Monthly",G7*12*M7*T7,G7*M7*T7))))) -> 0 | AB7: =IF(O7<>100%,0,I7*J7*M7) -> 0 | AC7: =IF(O7<>100%,0,IF(H7="Please Select", 0,IF(H7="Weekly",G7*52*M7,IF(H7="Fortnightly",G7*26*M7,IF(H7="Monthly",G7*12*M7,G7*M7))))) -> 0 | AD7: =IF(O7<>100%,0,IF(H7="Please Select", 0,IF(H7="Weekly",G7*52*N7*T7,IF(H7="Fortnightly",G7*26*N7*T7,IF(H7="Monthly",G7*12*N7*T7,G7*N7*T7))))) -> 0 | AE7: =IF(O7<>100%,0,I7*J7*N7) -> 0 | AF7: =IF(O7<>100%,0,IF(H7="Please Select", 0,IF(H7="Weekly",G7*52*N7,IF(H7="Fortnightly",G7*26*N7,IF(H7="Monthly",G7*12*N7,G7*N7))))) -> 0
D8: Property 2 | H8: Please Select | O8: =IF(SUM(K8:N8)=0,"",SUM(K8:N8)) ->  | T8: =IF(F8="Residential long-term",0.8,IF(F8="Residential short-term",0.7,IF(F8="Commercial",0.7,0))) -> 0 | U8: =IF(O8<>100%,0,IF(H8="Please Select", 0,IF(H8="Weekly",G8*52*K8*T8,IF(H8="Fortnightly",G8*26*K8*T8,IF(H8="Monthly",G8*12*K8*T8,G8*K8*T8))))) -> 0 | V8: =IF(O8<>100%,0,I8*J8*K8) -> 0 | W8: =IF(O8<>100%,0,IF(H8="Please Select", 0,IF(H8="Weekly",G8*52*K8,IF(H8="Fortnightly",G8*26*K8,IF(H8="Monthly",G8*12*K8,G8*K8))))) -> 0 | X8: =IF(O8<>100%,0,IF(H8="Please Select", 0,IF(H8="Weekly",G8*52*L8*T8,IF(H8="Fortnightly",G8*26*L8*T8,IF(H8="Monthly",G8*12*L8*T8,G8*L8*T8))))) -> 0 | Y8: 0 | Z8: 0 | AA8: =IF(O8<>100%,0,IF(H8="Please Select", 0,IF(H8="Weekly",G8*52*M8*T8,IF(H8="Fortnightly",G8*26*M8*T8,IF(H8="Monthly",G8*12*M8*T8,G8*M8*T8))))) -> 0 | AB8: 0 | AC8: 0 | AD8: =IF(O8<>100%,0,IF(H8="Please Select", 0,IF(H8="Weekly",G8*52*N8*T8,IF(H8="Fortnightly",G8*26*N8*T8,IF(H8="Monthly",G8*12*N8*T8,G8*N8*T8))))) -> 0 | AE8: 0 | AF8: 0
D9: Property 3 | H9: Please Select | T9: 0 | U9: 0 | V9: 0 | W9: 0 | X9: 0 | Y9: 0 | Z9: 0 | AA9: 0 | AB9: 0 | AC9: 0 | AD9: 0 | AE9: 0 | AF9: 0
D10: Property 4 | H10: Please Select | T10: 0 | U10: 0 | V10: 0 | W10: 0 | X10: 0 | Y10: 0 | Z10: 0 | AA10: 0 | AB10: 0 | AC10: 0 | AD10: 0 | AE10: 0 | AF10: 0
D11: Property 5 | H11: Please Select | O11: =IF(SUM(K11:N11)=0,"",SUM(K11:N11)) ->  | T11: 0 | U11: 0 | V11: 0 | W11: 0 | X11: 0 | Y11: 0 | Z11: 0 | AA11: 0 | AB11: 0 | AC11: 0 | AD11: 0 | AE11: 0 | AF11: 0
D12: Property 6 | H12: Please Select | T12: 0 | U12: 0 | V12: 0 | W12: 0 | X12: 0 | Y12: 0 | Z12: 0 | AA12: 0 | AB12: 0 | AC12: 0 | AD12: 0 | AE12: 0 | AF12: 0
D13: Property 7 | H13: Please Select | T13: 0 | U13: 0 | V13: 0 | W13: 0 | X13: 0 | Y13: 0 | Z13: 0 | AA13: 0 | AB13: 0 | AC13: 0 | AD13: 0 | AE13: 0 | AF13: 0
D14: Property 8 | H14: Please Select | T14: 0 | U14: 0 | V14: 0 | W14: 0 | X14: 0 | Y14: 0 | Z14: 0 | AA14: 0 | AB14: 0 | AC14: 0 | AD14: 0 | AE14: 0 | AF14: 0
D15: Property 9 | H15: Please Select | T15: 0 | U15: 0 | V15: 0 | W15: 0 | X15: 0 | Y15: 0 | Z15: 0 | AA15: 0 | AB15: 0 | AC15: 0 | AD15: 0 | AE15: 0 | AF15: 0
D16: Property 10 | H16: Please Select | T16: 0 | U16: 0 | V16: 0 | W16: 0 | X16: 0 | Y16: 0 | Z16: 0 | AA16: 0 | AB16: 0 | AC16: 0 | AD16: 0 | AE16: 0 | AF16: 0
U17: =SUM(U7:U16) -> 0 | V17: =SUM(V7:V16) -> 0 | W17: =SUM(W7:W16) -> 0 | X17: 0 | Y17: 0 | Z17: 0 | AA17: 0 | AB17: 0 | AC17: 0 | AD17: 0 | AE17: 0 | AF17: 0
G18: APPLICANT 1 | H18: APPLICANT 2 | I18: APPLICANT 3 | J18: APPLICANT 4
E19: Rental Income | G19: =W17 -> 0 | H19: =Z17 -> 0 | I19: =AC17 -> 0 | J19: =AF17 -> 0
E20: Discounted Rental Income | G20: =U17 -> 0 | H20: =X17 -> 0 | I20: =AA17 -> 0 | J20: =AD17 -> 0
E21: Investment Interest | G21: =V17 -> 0 | H21: =Y17 -> 0 | I21: =AB17 -> 0 | J21: =AE17 -> 0

Sheet SE
C3: SELF EMPLOYED
F6: Latest Year | H6: Prior Year
D7: Period Ending
C8: Profit and Loss
C9: Net Profit before Tax | F9: 0 | H9: 0 | I9: =IF(OR(H9="",H9=0),"",(F9-H9)/H9) -> 
C10: Addbacks
C11: Interest Expense | F11: 0 | H11: 0
C12: Financed Leasing Expense | F12: 0 | H12: 0
C13: Depreciation/ Amortisation of Intangibles | F13: 0 | H13: 0
C14: Salaries/ Wages paid to owners | F14: 0 | H14: 0 | I14: =IF(OR(H14="",H14=0),"",(F14-H14)/H14) -> 
C15: Other Addbacks | F15: 0 | H15: 0
C16: Other Addbacks | F16: 0 | H16: 0
C17: Business - Cash from Operations | F17: =F9+SUM(F11:F16) -> 0 | G17: 0 | H17: =H9+SUM(H11:H16) -> 0 | I17: =IF(OR(H17="",H17=0),"",(F17-H17)/H17) -> 
C22: Continuing Business Financial Commitments | F22: Personal commitments should be entered on the Calc worksheet
D23: Limit | E23: Remaining Term (months) | F23: Assessment Rate | H23: Actual Payment (monthly) | J23: Sensitised Annual Payments
C24: Term Loan (P&I) | D24: 0 | E24: 0 | F24: ='Calc Data'!C3 -> 0.08 | H24: 0 | J24: =IFERROR(MAX($H24,PMT($F24/12,$E24,-$D24))*12,"$0.00") -> $0.00
C25: Term Loan (P&I) | D25: 0 | E25: 0 | F25: ='Calc Data'!C3 -> 0.08 | H25: 0 | J25: =IFERROR(MAX($H25,PMT($F25/12,$E25,-$D25))*12,"$0.00") -> $0.00
C26: Term Loan (I/O) | D26: 0 | F26: ='Calc Data'!C3 -> 0.08 | H26: 0 | J26: =IFERROR(MAX($H26,PMT($F26/12,360,-$D26))*12,"$0.00") -> 0
C27: Line of Credit | D27: 0 | F27: ='Calc Data'!C3 -> 0.08 | J27: =IFERROR(D27*F27,"$0.00") -> 0
C28: Overdraft | D28: 0 | F28: ='Calc Data'!C3 -> 0.08 | J28: =IFERROR(D28*F28,"$0.00") -> 0
C29: Lease/HP | D29: 0 | H29: 0 | J29: =IFERROR(H29*12,"$0.00") -> 0
C30: Other | D30: 0 | H30: 0 | J30: =IFERROR(H30*12,"$0.00") -> 0
C31: Credit Cards | D31: 0 | J31: =IF(D31="",0,D31*0.0382*12) -> 0
H32: Sensitised Totals | J32: =SUM(J24:J31) -> 0
L33: 3
C35: Distribution of Business Income | H35: Applicant 1 | J35: Applicant 2 | L35: Applicant 3 | N35: Applicant 4
C36: =IF(AND((H37+J37+L37+N37)<=F37,(H39+J39+L39+N39)<=F39),"Apportion wages/salaries and business cash flow to applicants","APPORTIONED VALUES EXCEED AVAILABLE INCOME") -> Apportion wages/salaries and business cash flow to applicants | F36: Available Income | H36: $ Share of Income | I36: 0 | J36: $ Share of Income | L36: $ Share of Income | N36: $ Share of Income
C37: Adjusted Salaries/Wages paid to owners | F37: =IFERROR(AVERAGE(F14,H14),0) -> 0
C39: Residual Business Cash Flow for distribution | F39: =AVERAGE(F17,H17)-J32-F37 -> 0

Sheet Policy
B2: Policy Guidelines
B3: The following policy guidelines represent only a small overview of the total policy. Please make sure you refer to Gateway's Broker Operations Manual for more information.
B5: Qualifying rate
B6: The qualifying rate of new loans is the higher of product rate plus margin or floor rate. Different floor rates and margins may be applicable to consumer and commercial facilities. Qualifying rate of existing facilities depends on the product type.
B9: Maximum and Minimum loan terms and amounts
B10: TERM | C10: Maximum loan term is 30 years
C11: Maximum interest only term is 5 years
C12: Maximum fixed interest rate term is 5 years
B14: MINIMUM LOAN AMOUNT | C14: $20,000 Standard Variable Rate home loans
C15: $50,000 Fixed Rate home loans
C16: $150,000 Package product home loans
C17: $50,000 Construction and Vacant Land loans
B20: Loan to Valuation Ratio (LVR)
B21: Property Type | D21: Max LVRs
D22: P&I repayments | E22: Full or Partial Interest Only repayments
B23: Residential Dwelling in a Category 1 Location (Owner Occupied Purchase, Refinance or Construction) - excluding debt consolidation and equity release | D23: 95% including Capitalised LMI premium | E23: 90% including Capitalised LMI premium
B24: Residential Dwelling in a Category 1 Location (Investment Property Security or Purpose) | D24: 90% including Capitalised LMI premium | E24: 90% including Capitalised LMI premium
B25: Any transaction involving equity release or debt consolidation | D25: 90% including Capitalised LMI premium | E25: 90% including Capitalised LMI premium
B26: Residential Dwelling: High Risk Location (Category 3) | D26: 0.7 | E26: 0.7
B27: Residential Dwelling: Medium Risk Location (Category 2) | D27: 0.8 | E27: 0.8
B28: Vacant Land (Residential) <= 2 ha | D28: 0.8 | E28: 0.8
B29: Residential property (vacant or improved) > 2 ha < = 25ha | D29: 0.6 | E29: 0.6
B30: Multiple residences (up to four) on one title | D30: 0.7 | E30: 0.7
B31: Serviced Apartments (approved apartments only) | D31: 0.7 | E31: 0.7
B32: Reverse mortgage loans (Category 1 and 2 only) maximum 2 ha | E32: 15% plus 1% for each year above 60
B34: Acceptable locations
B35: Must be located within an acceptable location - categories 1, 2 and 3
B37: Minimum building area
B38: The preferred minimum acceptable building area of a residential dwelling offered as security for a loan is 40m2 being the main internal living area of the dwelling, excluding balconies, garages and car spaces. Properties <40m2 will be considered on a case-by-case basis.
B40: Living Expenses
B41: The Gateway living expense benchmark is based on the income-adjusted Household Expenditure Measure (HEM). The benchmark is a proxy for living expenses only. Costs of liabilities, contractual commitments and housing are not included in the benchmark and must be entered separately. Declared living expenses are compared against the benchmark and the higher is used. Other expenses, which are not included in the HEM benchmark, are added to the living expenses.
B43: Employment Types
B44: Casual employment | C44: Casual employment must be substantiated over a 6 month period.
B45: Contract employment | C45: A contracted employee must be in the same role for a minimum of 6 months. A confirmation is required that the existing contract has at least 3 months remaining. The income should be discounted to 80%.
B46: Regular Overtime | C46: Income is discounted to 80% for capacity testing. Calculated as the lesser of current and previous year’s overtime. 100% of overtime may be accepted where the applicant is employed in essential services and it is a condition of employment.
B47: Bonuses/Commission | C47: Bonuses/commission must be substantiated over a two-year period. A maximum of 80% of verified bonus/commission income should be used for serviceability calculations.
B48: Fully maintained car | C48: Where an individual receives a fully maintained vehicle and is able to evidence this entitlement, $5,000 may be added to the applicant’s gross taxable income.

Sheet Instructions
C3: Capacity Test Calculator User Guide
C34: 1. MANDATORY FIELDS: All mandatory fields must be completed; Loan details, Security Value, Base Income, Living Expenses and Location. An Assessment Result and Indicative Maximum Loan Amount will not display unless all mandatory fields are completed.
C35: 2. INCOME : Enter annual income based on income type. Less stable forms of income are discounted to 80% by default. These incomes should be entered before any discount.
C36: 3. RENTAL INCOME : Use the Rental worksheet to enter in the details of each Investment Property Rental Income (if applicable).
C37: The Ownership percentage must be entered against each property listed and total 100% otherwise no rental income will be included for that property.
C46: The total Rental Income per applicant, discounted rental income (calculated at either 70% or 80%) and Investment Interest will display at the bottom of the worksheet.
C47: Discounted Rental Income will also be carried over to the Calculator worksheet.
C48: Interest applicable to investment loans is used in calculating taxable income and therefore tax payable.
C56: 4. SELF EMPLOYED INCOME : | G56: Self-employed income is transferred from the SE worksheet. The income is adjusted for addbacks, ongoing lending commitments and tax.
C85: Continuing Financial Commitments: | H85: Only applicable to contractual commitments in the name of the business. Personal commitments must be entered on the Calc sheet.
H86: Enter interest/lease expense as addbacks. Actual payments are entered under Continuing Business Financial Commitments.
C88: Distribution of Business Income: | H88: Available income (salaries/wages and residual cash flow) must be allocated to the relevant applicants.
C90: 5. EXISTING MORTGAGES AND COMMITMENTS : Continuing mortgage commitments are assessed at the larger of repayments calculated based on Gateway's qualifying rate or actual payments.
C91: Please enter current loan limit, remaining term and actual repayments. Other commitments are calculated based on actual repayment amounts.
C92: 6. LIVING EXPENSES : Select the relationship status of borrowers relevant to the application using the drop down list. Select appropriate Partner relationship.
C93: The total number of dependents must only be entered against one partner.
C94: Declared Living Expenses: Enter monthly living expenses comparable to HEM and other expenses NOT comarable to HEM.
C95: 7. LOCATION : Enter the location (Security Type, Suburb, Postcode) of the security for the loan.
C97: 8. ASSESSMENT RESULT : Important messages will display here along with the Assessment Result; Servicing Met, Servicing Refer or Servicing Not Met. All messages must be "satisfied" before a Servicing Result will display. An Indicative loan amount will display once all mandatory fields have been completed. As this is dependant on the LVR, the Indicative loan amount will change as the LVR changes.

Sheet Calc Data (hidden)
B2: Margin Rate Commercial | C2: 0.025 | E2: Variable personal-loan rate | F2: 0.1159
B3: Floor Rate Commercial | C3: 0.08 | E3: New car loan rate | F3: 0.0704
B4: Margin Rate Residential | C4: 0.03
B5: Floor Rate Residential | C5: 0.08
B7: Loan | C7: Period | F7: Dependents Flags
B8: Green Plus Home Loan | C8: Please Select | F8: Applicant 1 | G8: =IF(AND(Calc!AH24="App 1",Calc!AE24>0),1,IF(AND(Calc!AH25="App 1",Calc!AE25>0),1,IF(AND(Calc!AH26="App 1",Calc!AE26>0),1,0))) -> 0
B9: Green Home Loan | C9: Weekly | F9: Applicant 2 | G9: =IF(AND(Calc!AH23="App 2",Calc!AE23>0),1,IF(AND(Calc!AH25="App 2",Calc!AE25>0),1,IF(AND(Calc!AH26="App 2",Calc!AE26>0),1,0))) -> 0
B10: Premium Package | C10: Fortnightly | F10: Applicant 3 | G10: =IF(AND(Calc!AH23="App 3",Calc!AE23>0),1,IF(AND(Calc!AH24="App 3",Calc!AE24>0),1,IF(AND(Calc!AH26="App 3",Calc!AE26>0),1,0))) -> 0
B11: Low Rate Essentials | C11: Monthly | F11: Applicant 4 | G11: =IF(AND(Calc!AH23="App 4",Calc!AE23>0),1,IF(AND(Calc!AH24="App 4",Calc!AE24>0),1,IF(AND(Calc!AH25="App 4",Calc!AE25>0),1,0))) -> 0
B12: Standard Variable | C12: Annually
B13: Equitismart
B14: Construction
B15: Land
B16: 2022-2023 Tax Rates
B17: Tax Boundary | C17: Tax Due | D17: Excess %
B18: 0 | C18: 0 | D18: 0
B19: 18200 | C19: 0 | D19: 0.19
B20: 45000 | C20: =C19+(B20-B19)*D19 -> 5092 | D20: 0.325
B21: 120000 | C21: =C20+(B21-B20)*D20 -> 29467 | D21: 0.37
B22: 180000 | C22: =C21+(B22-B21)*D21 -> 51667 | D22: 0.45
B24: APPLICANT 1 | E24: APPLICANT 2 | H24: APPLICANT 3 | K24: APPLICANT 4
B25: GROSS INCOME: | C25: =Calc!G22+Calc!G23+Calc!G24+Calc!G25+Calc!G27+Calc!G28+Calc!G29+Rental!G19 -> 0 | E25: GROSS INCOME: | F25: =Calc!J22+Calc!J23+Calc!J24+Calc!J25+Calc!J27+Calc!J28+Calc!J29+Rental!H19 -> 0 | H25: GROSS INCOME: | I25: =Calc!M22+Calc!M23+Calc!M24+Calc!M25+Calc!M27+Calc!M28+Calc!M29+Rental!I19 -> 0 | K25: GROSS INCOME: | L25: =Calc!P22+Calc!P23+Calc!P24+Calc!P25+Calc!P27+Calc!P28+Calc!P29+Rental!J19 -> 0
B26: DISCOUNTED INCOME: | C26: =Calc!G30 -> 0 | E26: DISCOUNTED INCOME: | F26: =Calc!J30 -> 0 | H26: DISCOUNTED INCOME | I26: =Calc!M30 -> 0 | K26: DISCOUNTED INCOME: | L26: =Calc!P30 -> 0
B27: Investment Interest: | C27: =Rental!V17 -> 0 | E27: Investment Interest: | F27: =Rental!Y17 -> 0 | H27: Investment Interest: | I27: =Rental!AB17 -> 0 | K27: Investment Interest: | L27: =Rental!AE17 -> 0
B28: Tax-free income: | C28: =Calc!G29 -> 0 | E28: Tax-free income: | F28: =Calc!J29 -> 0 | H28: Tax-free income: | I28: =Calc!M29 -> 0 | K28: Tax-free income: | L28: =Calc!P29 -> 0
B29: Taxable Income: | C29: =C26-C27-C28 -> 0 | E29: Taxable Income: | F29: =F26-F27-F28 -> 0 | H29: Taxable Income: | I29: =I26-I27-I28 -> 0 | K29: Taxable Income: | L29: =L26-L27-L28 -> 0
B30: Tax Boundary: | C30: =IF(C29<0, 0, VLOOKUP(C29,TaxTable,1)) -> 0 | E30: Tax Boundary: | F30: =IF(F29<0, 0, VLOOKUP(F29,TaxTable,1)) -> 0 | H30: Tax Boundary: | I30: =IF(I29<0, 0, VLOOKUP(I29,TaxTable,1)) -> 0 | K30: Tax Boundary: | L30: =IF(L29<0, 0, VLOOKUP(L29,TaxTable,1)) -> 0
B31: Tax Due on Boundary : | C31: =IF(C29<0, 0, VLOOKUP(C29,TaxTable,2)) -> 0 | E31: Tax Due on Boundary : | F31: =IF(F29<0, 0, VLOOKUP(F29,TaxTable,2)) -> 0 | H31: Tax Due on Boundary : | I31: =IF(I29<0, 0, VLOOKUP(I29,TaxTable,2)) -> 0 | K31: Tax Due on Boundary : | L31: =IF(L29<0, 0, VLOOKUP(L29,TaxTable,2)) -> 0
B32: % Due on Excess : | C32: =IF(C29<0, 0, VLOOKUP(C29,TaxTable,3)) -> 0 | E32: % Due on Excess : | F32: =IF(F29<0, 0, VLOOKUP(F29,TaxTable,3)) -> 0 | H32: % Due on Excess : | I32: =IF(I29<0, 0, VLOOKUP(I29,TaxTable,3)) -> 0 | K32: % Due on Excess : | L32: =IF(L29<0, 0, VLOOKUP(L29,TaxTable,3)) -> 0
B34: TAX DUE ON INCOME : | C34: =C31+(C29-C30)*C32 -> 0 | E34: TAX DUE ON INCOME : | F34: =F31+(F29-F30)*F32 -> 0 | H34: TAX DUE ON INCOME : | I34: =I31+(I29-I30)*I32 -> 0 | K34: TAX DUE ON INCOME : | L34: =L31+(L29-L30)*L32 -> 0
B36: MEDICARE | C36: =IF(C29<=18200,0,C29*2%) -> 0 | E36: MEDICARE | F36: =IF(F29<=18200,0,F29*2%) -> 0 | H36: MEDICARE | I36: =IF(I29<=18200,0,I29*2%) -> 0 | K36: MEDICARE | L36: =IF(L29<=18200,0,L29*2%) -> 0
B37: TAX DUE ON INCOME : | C37: =C34+C36 -> 0 | E37: TAX DUE ON INCOME : | F37: =F34+F36 -> 0 | H37: TAX DUE ON INCOME : | I37: =I34+I36 -> 0 | K37: TAX DUE ON INCOME : | L37: =L34+L36 -> 0
B39: Annual Net Income Surplus (NIS) | C39: =(Calc!S30-Calc!S50-SUM(C37,F37,I37,L37)-'HEM Table'!O92) -> 0
B40: Net Servicing Ratio (NSR) | C40: =IF(ISNUMBER((Calc!S30-SUM(C37,F37,I37,L37)-#REF!)/Calc!S50)=FALSE,0,(Calc!S30-SUM(C37,F37,I37,L37)-'HEM Table'!O92)/Calc!S50) -> 0 | D40: Not used
B42: Annual NIS Floor | C42: 0
B43: Minimum NIS based on Income | C43: =Calc!S30*0.036 -> 0 | D43: Not used
B44: Minimum Annual NIS | C44: 2400
B46: Available for Repayments | C46: =(Calc!S30-SUM(Calc!S36:'Calc'!S46)-SUM(C37,F37,I37,L37)-'HEM Table'!O92)-C44 -> -2400
B47: Maximum Loan Amount | C47: =MIN(-PV(MAX($C$5,Calc!$M$12+$C$4)/12,(Calc!K12-Calc!N12),C46/12,0),(6.5*(C25+F25+I25+L25)-SUM(Calc!G36:'Calc'!G42)-Calc!G44-Calc!G45)) -> 0
B49: Income available for new lending | C49: =ROUND(C39-C44,1) -> -2400

Sheet HEM Table (hidden)
F1: "HEM Table 1" equivalent: by Income Level and Residency | M1: Version | N1: 2023 Q4
H2: BASED ON PREDICTED VALUES FROM THE QUANTILE REGRESSIONS
J3: Smoothed HEM
H5: Total current gross HH income from all sources (measured in current dollars)
E6: 25000 | F6: 25000 | G6: 38000 | H6: 50000 | I6: 63000 | J6: 76000 | K6: 101000 | L6: 126000 | M6: 151000 | N6: 176000 | O6: 202000 | P6: 252000 | Q6: 315000 | R6: 378000
E7: or less | F7: to | G7: to | H7: to | I7: to | J7: to | K7: to | L7: to | M7: to | N7: to | O7: to | P7: to | Q7: to | R7: to
F8: 38000 | G8: 50000 | H8: 63000 | I8: 76000 | J8: 101000 | K8: 126000 | L8: 151000 | M8: 176000 | N8: 202000 | O8: 252000 | P8: 315000 | Q8: 378000 | R8: 630000
D9: Australia
D10: Couple | E10: 0 | F10: 577.3711208 | G10: 592.8024892 | H10: 612.8757023 | I10: 650.8613518 | J10: 710.1736457 | K10: 790.5720149 | L10: 863.7229266 | M10: 952.4027412 | N10: 991.2459665 | O10: 1039.889476 | P10: 1169.536035 | Q10: 1283.802851 | R10: 1350.486358
D11: Couple with 1 child | E11: 0 | F11: 0 | G11: 684.3649342 | H11: 704.4950777 | I11: 742.5884423 | J11: 802.0689359 | K11: 882.6952702 | L11: 956.0536142 | M11: 1044.984971 | N11: 1083.938268 | O11: 1132.719733 | P11: 1262.733928 | Q11: 1377.324768 | R11: 1444.197368
D12: Couple with 2 children | E12: 0 | F12: 0 | G12: 753.4543404 | H12: 773.5489355 | I12: 811.5751279 | J12: 870.9506557 | K12: 951.4348141 | L12: 1024.663748 | M12: 1113.438129 | N12: 1152.322728 | O12: 1201.018194 | P12: 1330.803032 | Q12: 1445.19165 | R12: 1511.946356
D13: Couple with 3 children | E13: 0 | F13: 0 | G13: 0 | H13: 843.7380215 | I13: 881.7295515 | J13: 941.0511318 | K13: 1021.461989 | L13: 1094.624278 | M13: 1183.317926 | N13: 1222.167203 | O13: 1270.818271 | P13: 1400.485027 | Q13: 1514.769645 | R13: 1581.463578
D15: Single person | E15: 293.8449549 | F15: 310.8881899 | G15: 326.2255165 | H15: 346.1764205 | I15: 383.9305774 | J15: 442.8814733 | K15: 522.7899173 | L15: 595.4950762 | M15: 683.634548 | N15: 722.2410041 | O15: 770.5881359 | P15: 899.4447351 | Q15: 1013.015181 | R15: 1079.292419
D16: Single parent with 1 child | E16: 0 | F16: 422.2034061 | G16: 437.6904175 | H16: 457.8360172 | I16: 495.9586202 | J16: 555.4848394 | K16: 636.1731267 | L16: 709.5878304 | M16: 798.5874365 | N16: 837.5706611 | O16: 886.3896599 | P16: 1016.503742 | Q16: 1131.182545 | R16: 1198.106597
D17: Single parent with 2 children | E17: 0 | F17: 524.7895599 | G17: 540.1982507 | H17: 560.2419376 | I17: 598.1716586 | J17: 657.3967183 | K17: 737.6767536 | L17: 810.7200322 | M17: 899.2693833 | N17: 938.0553996 | O17: 986.6274098 | P17: 1116.083209 | Q17: 1230.181821 | R17: 1296.767285
D18: Single parent with 3 children | E18: 0 | F18: 0 | G18: 642.7060839 | H18: 662.6478579 | I18: 700.384697 | J18: 759.3085972 | K18: 839.1803805 | L18: 911.852234 | M18: 999.9513302 | N18: 1038.540138 | O18: 1086.86516 | P18: 1215.662676 | Q18: 1329.181096 | R18: 1395.427973
A20: Extrapolated HEM Table | D20: Income Band | E20: A | F20: B | G20: C | H20: D | I20: E | J20: F | K20: G | L20: H | M20: I | N20: J | O20: K | P20: L | Q20: M | R20: N | S20: O | T20: O | U20: O | V20: O
D21: Income Band Lower | E21: =E8 -> 0 | F21: =F6 -> 25000 | G21: =G6 -> 38000 | H21: 50000 | I21: 63000 | J21: 76000 | K21: 101000 | L21: 126000 | M21: 151000 | N21: 176000 | O21: 202000 | P21: 252000 | Q21: 315000 | R21: 378000 | S21: 1 | T21: 2 | U21: 3 | V21: 4
D22: Income Band Upper | E22: =E6 -> 25000 | F22: =F8 -> 38000 | G22: =G8 -> 50000 | H22: 63000 | I22: 76000 | J22: 101000 | K22: 126000 | L22: 151000 | M22: 176000 | N22: 202000 | O22: 252000 | P22: 315000 | Q22: 378000 | R22: 630000 | S22: =H83 -> 0 | T22: =H84 -> 0 | U22: =H85 -> 0 | V22: =H86 -> 0
A23: Applicants | B23: Dependents | C23: App/Dep ID
A24: 2 | B24: 0 | C24: =A24&B24 -> 20 | D24: Couple | E24: =ROUNDUP(IF(E10>0,E10,F24),0) -> 578 | F24: =ROUNDUP(IF(F10>0,F10,G24),0) -> 578 | G24: 593 | H24: 613 | I24: 651 | J24: 711 | K24: 791 | L24: 864 | M24: 953 | N24: 992 | O24: 1040 | P24: 1170 | Q24: 1284 | R24: 1351 | S24: =ROUNDUP((S$22/AVERAGE($R$22,$R$21))*($R24-$Q24)+$Q24,0) -> 1284 | T24: =ROUNDUP((T$22/AVERAGE($R$22,$R$21))*($R24-$Q24)+$Q24,0) -> 1284 | U24: =ROUNDUP((U$22/AVERAGE($R$22,$R$21))*($R24-$Q24)+$Q24,0) -> 1284 | V24: =ROUNDUP((V$22/AVERAGE($R$22,$R$21))*($R24-$Q24)+$Q24,0) -> 1284
A25: 2 | B25: 1 | C25: =A25&B25 -> 21 | D25: Couple with 1 child | E25: =ROUNDUP(IF(E11>0,E11,F25),0) -> 685 | F25: =ROUNDUP(IF(F11>0,F11,G25),0) -> 685 | G25: =ROUNDUP(IF(G11>0,G11,H25),0) -> 685 | H25: =ROUNDUP(IF(H11>0,H11,I25),0) -> 705 | I25: =ROUNDUP(IF(I11>0,I11,J25),0) -> 743 | J25: =ROUNDUP(IF(J11>0,J11,K25),0) -> 803 | K25: =ROUNDUP(IF(K11>0,K11,L25),0) -> 883 | L25: =ROUNDUP(IF(L11>0,L11,M25),0) -> 957 | M25: =ROUNDUP(IF(M11>0,M11,N25),0) -> 1045 | N25: =ROUNDUP(IF(N11>0,N11,O25),0) -> 1084 | O25: =ROUNDUP(IF(O11>0,O11,P25),0) -> 1133 | P25: =ROUNDUP(IF(P11>0,P11,Q25),0) -> 1263 | Q25: =ROUNDUP(IF(Q11>0,Q11,R25),0) -> 1378 | R25: =ROUNDUP(IF(R11>0,R11,S25),0) -> 1445 | S25: =ROUNDUP((S$22/AVERAGE($R$22,$R$21))*($R25-$Q25)+$Q25,0) -> 1378 | T25: 1378 | U25: 1378 | V25: 1378
A26: 2 | B26: 2 | C26: =A26&B26 -> 22 | D26: Couple with 2 children | E26: 754 | F26: 754 | G26: 754 | H26: 774 | I26: 812 | J26: 871 | K26: 952 | L26: 1025 | M26: 1114 | N26: 1153 | O26: 1202 | P26: 1331 | Q26: 1446 | R26: 1512 | S26: 1446 | T26: 1446 | U26: 1446 | V26: 1446
A27: 2 | B27: 3 | C27: =A27&B27 -> 23 | D27: Couple with 3 children | E27: 844 | F27: 844 | G27: 844 | H27: 844 | I27: 882 | J27: 942 | K27: 1022 | L27: 1095 | M27: 1184 | N27: 1223 | O27: 1271 | P27: 1401 | Q27: 1515 | R27: 1582 | S27: 1515 | T27: 1515 | U27: 1515 | V27: 1515
A28: 2 | B28: 4 | C28: =A28&B28 -> 24 | D28: Couple with 4 children | E28: =E$27+(E$27-E$26)*($B28-$B$27) -> 934 | F28: =F$27+(F$27-F$26)*($B28-$B$27) -> 934 | G28: 934 | H28: 914 | I28: 952 | J28: 1013 | K28: 1092 | L28: 1165 | M28: 1254 | N28: 1293 | O28: 1340 | P28: 1471 | Q28: 1584 | R28: 1652 | S28: 1584 | T28: 1584 | U28: 1584 | V28: 1584
A29: 2 | B29: 5 | C29: 25 | D29: Couple with 5 children | E29: =E$27+(E$27-E$26)*($B29-$B$27) -> 1024 | F29: 1024 | G29: 1024 | H29: 984 | I29: 1022 | J29: 1084 | K29: 1162 | L29: 1235 | M29: 1324 | N29: 1363 | O29: 1409 | P29: 1541 | Q29: 1653 | R29: 1722 | S29: 1653 | T29: 1653 | U29: 1653 | V29: 1653
A30: 2 | B30: 6 | C30: 26 | D30: Couple with 6 children | E30: 1114 | F30: 1114 | G30: 1114 | H30: 1054 | I30: 1092 | J30: 1155 | K30: 1232 | L30: 1305 | M30: 1394 | N30: 1433 | O30: 1478 | P30: 1611 | Q30: 1722 | R30: 1792 | S30: 1722 | T30: 1722 | U30: 1722 | V30: 1722
A31: 2 | B31: 7 | C31: 27 | D31: Couple with 7 children | E31: 1204 | F31: 1204 | G31: 1204 | H31: 1124 | I31: 1162 | J31: 1226 | K31: 1302 | L31: 1375 | M31: 1464 | N31: 1503 | O31: 1547 | P31: 1681 | Q31: 1791 | R31: 1862 | S31: 1791 | T31: 1791 | U31: 1791 | V31: 1791
A32: 2 | B32: 8 | C32: 28 | D32: Couple with 8 children | E32: 1294 | F32: 1294 | G32: 1294 | H32: 1194 | I32: 1232 | J32: 1297 | K32: 1372 | L32: 1445 | M32: 1534 | N32: 1573 | O32: 1616 | P32: 1751 | Q32: 1860 | R32: 1932 | S32: 1860 | T32: 1860 | U32: 1860 | V32: 1860
A33: 2 | B33: 9 | C33: 29 | D33: Couple with 9 children | E33: 1384 | F33: 1384 | G33: 1384 | H33: 1264 | I33: 1302 | J33: 1368 | K33: 1442 | L33: 1515 | M33: 1604 | N33: 1643 | O33: 1685 | P33: 1821 | Q33: 1929 | R33: 2002 | S33: 1929 | T33: 1929 | U33: 1929 | V33: 1929
A34: 2 | B34: 10 | C34: 210 | D34: Couple with 10 children | E34: 1474 | F34: 1474 | G34: 1474 | H34: 1334 | I34: 1372 | J34: 1439 | K34: 1512 | L34: 1585 | M34: 1674 | N34: 1713 | O34: 1754 | P34: 1891 | Q34: 1998 | R34: 2072 | S34: 1998 | T34: 1998 | U34: 1998 | V34: 1998
A36: 1 | B36: 0 | C36: =A36&B36 -> 10 | D36: Single person | E36: =ROUNDUP(IF(E15>0,E15,F36),0) -> 294 | F36: =ROUNDUP(IF(F15>0,F15,G36),0) -> 311 | G36: 327 | H36: 347 | I36: 384 | J36: 443 | K36: 523 | L36: 596 | M36: 684 | N36: 723 | O36: 771 | P36: 900 | Q36: 1014 | R36: 1080 | S36: =ROUNDUP(S$22/AVERAGE($R$22,$R$21)*($R36-$Q36)+$Q36,0) -> 1014 | T36: =ROUNDUP(T$22/AVERAGE($R$22,$R$21)*($R36-$Q36)+$Q36,0) -> 1014 | U36: =ROUNDUP(U$22/AVERAGE($R$22,$R$21)*($R36-$Q36)+$Q36,0) -> 1014 | V36: =ROUNDUP(V$22/AVERAGE($R$22,$R$21)*($R36-$Q36)+$Q36,0) -> 1014
A37: 1 | B37: 1 | C37: =A37&B37 -> 11 | D37: Single parent with 1 child | E37: =ROUNDUP(IF(E16>0,E16,F37),0) -> 423 | F37: 423 | G37: 438 | H37: 458 | I37: 496 | J37: 556 | K37: 637 | L37: 710 | M37: 799 | N37: 838 | O37: 887 | P37: 1017 | Q37: 1132 | R37: 1199 | S37: =ROUNDUP(S$22/AVERAGE($R$22,$R$21)*($R37-$Q37)+$Q37,0) -> 1132 | T37: 1132 | U37: 1132 | V37: 1132
A38: 1 | B38: 2 | C38: =A38&B38 -> 12 | D38: Single parent with 2 children | E38: =ROUNDUP(IF(E17>0,E17,F38),0) -> 525 | F38: 525 | G38: 541 | H38: 561 | I38: 599 | J38: 658 | K38: 738 | L38: 811 | M38: 900 | N38: 939 | O38: 987 | P38: 1117 | Q38: 1231 | R38: 1297 | S38: 1231 | T38: 1231 | U38: 1231 | V38: 1231
A39: 1 | B39: 3 | C39: =A39&B39 -> 13 | D39: Single parent with 3 children | E39: =ROUNDUP(IF(E18>0,E18,F39),0) -> 643 | F39: 643 | G39: 643 | H39: 663 | I39: 701 | J39: 760 | K39: 840 | L39: 912 | M39: 1000 | N39: 1039 | O39: 1087 | P39: 1216 | Q39: 1330 | R39: 1396 | S39: 1330 | T39: 1330 | U39: 1330 | V39: 1330
A40: 1 | B40: 4 | C40: =A40&B40 -> 14 | D40: Single Parent with 4 children | E40: =E$39+(E$39-E$38)*($B40-$B$27) -> 761 | F40: =F$39+(F$39-F$38)*($B40-$B$27) -> 761 | G40: 745 | H40: 765 | I40: 803 | J40: 862 | K40: 942 | L40: 1013 | M40: 1100 | N40: 1139 | O40: 1187 | P40: 1315 | Q40: 1429 | R40: 1495 | S40: 1429 | T40: 1429 | U40: 1429 | V40: 1429
A41: 1 | B41: 5 | C41: 15 | D41: Single Parent with 5 children | E41: =E$39+(E$39-E$38)*($B41-$B$27) -> 879 | F41: 879 | G41: 847 | H41: 867 | I41: 905 | J41: 964 | K41: 1044 | L41: 1114 | M41: 1200 | N41: 1239 | O41: 1287 | P41: 1414 | Q41: 1528 | R41: 1594 | S41: 1528 | T41: 1528 | U41: 1528 | V41: 1528
A42: 1 | B42: 6 | C42: 16 | D42: Single Parent with 6 children | E42: 997 | F42: 997 | G42: 949 | H42: 969 | I42: 1007 | J42: 1066 | K42: 1146 | L42: 1215 | M42: 1300 | N42: 1339 | O42: 1387 | P42: 1513 | Q42: 1627 | R42: 1693 | S42: 1627 | T42: 1627 | U42: 1627 | V42: 1627
A43: 1 | B43: 7 | C43: 17 | D43: Single Parent with 7 children | E43: 1115 | F43: 1115 | G43: 1051 | H43: 1071 | I43: 1109 | J43: 1168 | K43: 1248 | L43: 1316 | M43: 1400 | N43: 1439 | O43: 1487 | P43: 1612 | Q43: 1726 | R43: 1792 | S43: 1726 | T43: 1726 | U43: 1726 | V43: 1726
A44: 1 | B44: 8 | C44: 18 | D44: Single Parent with 8 children | E44: 1233 | F44: 1233 | G44: 1153 | H44: 1173 | I44: 1211 | J44: 1270 | K44: 1350 | L44: 1417 | M44: 1500 | N44: 1539 | O44: 1587 | P44: 1711 | Q44: 1825 | R44: 1891 | S44: 1825 | T44: 1825 | U44: 1825 | V44: 1825
A45: 1 | B45: 9 | C45: 19 | D45: Single Parent with 9 children | E45: 1351 | F45: 1351 | G45: 1255 | H45: 1275 | I45: 1313 | J45: 1372 | K45: 1452 | L45: 1518 | M45: 1600 | N45: 1639 | O45: 1687 | P45: 1810 | Q45: 1924 | R45: 1990 | S45: 1924 | T45: 1924 | U45: 1924 | V45: 1924
A46: 1 | B46: 10 | C46: 110 | D46: Single Parent with 10 children | E46: 1469 | F46: 1469 | G46: 1357 | H46: 1377 | I46: 1415 | J46: 1474 | K46: 1554 | L46: 1619 | M46: 1700 | N46: 1739 | O46: 1787 | P46: 1909 | Q46: 2023 | R46: 2089 | S46: 2023 | T46: 2023 | U46: 2023 | V46: 2023
D50: Relationship Status
D51: Applicant | E51: Status | F51: Dependents | G51: Partner
D52: Applicant 1 | E52: =INDEX(Calc!$AA$23:$AI$26,MATCH($D52,Calc!$X$23:$X$26,0),MATCH(E$51,Calc!$AA$22:$AI$22,0)) -> N/A | F52: =INDEX(Calc!$AA$23:$AI$26,MATCH($D52,Calc!$X$23:$X$26,0),MATCH(F$51,Calc!$AA$22:$AI$22,0)) -> 0 | G52: =INDEX(Calc!$AA$23:$AI$26,MATCH($D52,Calc!$X$23:$X$26,0),MATCH(G$51,Calc!$AA$22:$AI$22,0)) -> N/A
D53: Applicant 2 | E53: =INDEX(Calc!$AA$23:$AI$26,MATCH($D53,Calc!$X$23:$X$26,0),MATCH(E$51,Calc!$AA$22:$AI$22,0)) -> N/A | F53: =INDEX(Calc!$AA$23:$AI$26,MATCH($D53,Calc!$X$23:$X$26,0),MATCH(F$51,Calc!$AA$22:$AI$22,0)) -> 0 | G53: =INDEX(Calc!$AA$23:$AI$26,MATCH($D53,Calc!$X$23:$X$26,0),MATCH(G$51,Calc!$AA$22:$AI$22,0)) -> N/A
D54: Applicant 3 | E54: =INDEX(Calc!$AA$23:$AI$26,MATCH($D54,Calc!$X$23:$X$26,0),MATCH(E$51,Calc!$AA$22:$AI$22,0)) -> N/A | F54: =INDEX(Calc!$AA$23:$AI$26,MATCH($D54,Calc!$X$23:$X$26,0),MATCH(F$51,Calc!$AA$22:$AI$22,0)) -> 0 | G54: =INDEX(Calc!$AA$23:$AI$26,MATCH($D54,Calc!$X$23:$X$26,0),MATCH(G$51,Calc!$AA$22:$AI$22,0)) -> N/A
D55: Applicant 4 | E55: =INDEX(Calc!$AA$23:$AI$26,MATCH($D55,Calc!$X$23:$X$26,0),MATCH(E$51,Calc!$AA$22:$AI$22,0)) -> N/A | F55: =INDEX(Calc!$AA$23:$AI$26,MATCH($D55,Calc!$X$23:$X$26,0),MATCH(F$51,Calc!$AA$22:$AI$22,0)) -> 0 | G55: =INDEX(Calc!$AA$23:$AI$26,MATCH($D55,Calc!$X$23:$X$26,0),MATCH(G$51,Calc!$AA$22:$AI$22,0)) -> N/A
D57: Income Band Calculation
D58: Income Band Lower | E58: Income Band Upper | F58: Income Band
D59: =E21 -> 0 | E59: =E22 -> 25000 | F59: A
D60: =E59+1 -> 25001 | E60: =OFFSET($E$22,0,ROW(2:2)-1) -> 38000 | F60: B
D61: 38001 | E61: =OFFSET($E$22,0,ROW(3:3)-1) -> 50000 | F61: C
D62: 50001 | E62: =OFFSET($E$22,0,ROW(4:4)-1) -> 63000 | F62: D
D63: 63001 | E63: =OFFSET($E$22,0,ROW(5:5)-1) -> 76000 | F63: E
D64: 76001 | E64: =OFFSET($E$22,0,ROW(6:6)-1) -> 101000 | F64: F
D65: 101001 | E65: =OFFSET($E$22,0,ROW(7:7)-1) -> 126000 | F65: G
D66: 126001 | E66: =OFFSET($E$22,0,ROW(8:8)-1) -> 151000 | F66: H
D67: 151001 | E67: =OFFSET($E$22,0,ROW(9:9)-1) -> 176000 | F67: I
D68: 176001 | E68: =OFFSET($E$22,0,ROW(10:10)-1) -> 202000 | F68: J
D69: 202001 | E69: =OFFSET($E$22,0,ROW(11:11)-1) -> 252000 | F69: K
D70: 252001 | E70: =OFFSET($E$22,0,ROW(12:12)-1) -> 315000 | F70: L
D71: 315001 | E71: =OFFSET($E$22,0,ROW(13:13)-1) -> 378000 | F71: M
D72: 378001 | E72: =OFFSET($E$22,0,ROW(14:14)-1) -> 630000 | F72: N
D73: 630001 | F73: O
D75: Group ID Matrix | E75: Applicant 1 | F75: Applicant 2 | G75: Applicant 3 | H75: Applicant 4 | I75: 0 | J75: Non Applicant
D76: Applicant 1 | E76: 0 | F76: 1 | G76: 1 | H76: 1 | I76: 2 | J76: 3
D77: Applicant 2 | E77: 1 | F77: 0 | G77: 4 | H77: 4 | I77: 5 | J77: 6
D78: Applicant 3 | E78: 1 | F78: 4 | G78: 0 | H78: 7 | I78: 8 | J78: 9
D79: Applicant 4 | E79: 1 | F79: 4 | G79: 7 | H79: 0 | I79: 10 | J79: 11
D81: HEM Calculation
D82: Applicant Short | E82: Applicant Long | F82: Partner | G82: Income | H82: Grouped Income | I82: Income Band | J82: Applicants | K82: Dependents | L82: Grouped Dependents | M82: App/Dep ID | N82: Group ID | O82: HEM
D83: 1 | E83: Applicant 1 | F83: =IF(OR(G52=0,G52="N/A"),0,IF(G52="Non App","Non Applicant","Applicant "&RIGHT(G52,1))) -> 0 | G83: =Calc!G30 -> 0 | H83: =SUMIFS($G$83:$G$86,$E$83:$E$86,E83)+SUMIFS($G$83:$G$86,$F$83:$F$86,E83) -> 0 | I83: =IF(AND(H83>=$D$59,H83<=$E$59),$F$59,IF(AND(H83>=$D$60,H83<=$E$60),$F$60,IF(AND(H83>=$D$61,H83<=$E$61),$F$61,IF(AND(H83>=$D$62,H83<=$E$62),$F$62,IF(AND(H83>=$D$63,H83<=$E$63),$F$63,IF(AND(H83>=$D$64,H83<=$E$64),$F$64,IF(AND(H83>=$D$65,H83<=$E$65),$F$65,IF(AND(H83>=$D$66,H83<=$E$66),$F$66,IF(AND(H83>=$D$67,H83<=$E$67),$F$67,IF(AND(H83>=$D$68,H83<=$E$68),$F$68,IF(AND(H83>=$D$69,H83<=$E$69),$F$69,IF(AND(H83>=$D$70,H83<=$E$70),$F$70,IF(AND(H83>=$D$71,H83<=$E$71),$F$71,IF(AND(H83>=$D$72,H83<=$E$72),$F$72,IF(H83>=$D$73,$F$73))))))))))))))) -> A | J83: =IF(OR(E52="N/A",E52=0),0,IF(F83=0,1,2)) -> 0 | K83: =Calc!AE23 -> 0 | L83: =SUMIF($E$83:$E$86,E83,$K$83:$K$86)+SUMIF($F$83:$F$86,E83,$K$83:$K$86) -> 0 | M83: =J83&L83 -> 00 | N83: =SUMPRODUCT(($E$76:$J$79)*($E$75:$J$75=F83)*($D$76:$D$79=E83)) -> 2 | O83: =IF(I83="O",SUMPRODUCT(($S$24:$V$46)*($S$21:$V$21=D83)*($C$24:$C$46=M83))/COUNTIF($N$83:$N$86,N83),SUMPRODUCT(($E$24:$R$46)*($E$20:$R$20=I83)*($C$24:$C$46=M83))/COUNTIF($N$83:$N$86,N83)) -> 0
D84: 2 | E84: Applicant 2 | F84: =IF(OR(G53="N/A",G53=0),0,IF(G53="Non App","Non Applicant","Applicant "&RIGHT(G53,1))) -> 0 | G84: =Calc!J30 -> 0 | H84: =SUMIFS($G$83:$G$86,$E$83:$E$86,E84)+SUMIFS($G$83:$G$86,$F$83:$F$86,E84) -> 0 | I84: =IF(AND(H84>=$D$59,H84<=$E$59),$F$59,IF(AND(H84>=$D$60,H84<=$E$60),$F$60,IF(AND(H84>=$D$61,H84<=$E$61),$F$61,IF(AND(H84>=$D$62,H84<=$E$62),$F$62,IF(AND(H84>=$D$63,H84<=$E$63),$F$63,IF(AND(H84>=$D$64,H84<=$E$64),$F$64,IF(AND(H84>=$D$65,H84<=$E$65),$F$65,IF(AND(H84>=$D$66,H84<=$E$66),$F$66,IF(AND(H84>=$D$67,H84<=$E$67),$F$67,IF(AND(H84>=$D$68,H84<=$E$68),$F$68,IF(AND(H84>=$D$69,H84<=$E$69),$F$69,IF(AND(H84>=$D$70,H84<=$E$70),$F$70,IF(AND(H84>=$D$71,H84<=$E$71),$F$71,IF(AND(H84>=$D$72,H84<=$E$72),$F$72,IF(H84>=$D$73,$F$73))))))))))))))) -> A | J84: =IF(OR(E53="N/A",E53=0),0,IF(F84=0,1,2)) -> 0 | K84: =Calc!AE24 -> 0 | L84: =SUMIF($E$83:$E$86,E84,$K$83:$K$86)+SUMIF($F$83:$F$86,E84,$K$83:$K$86) -> 0 | M84: =J84&L84 -> 00 | N84: =SUMPRODUCT(($E$76:$J$79)*($E$75:$J$75=F84)*($D$76:$D$79=E84)) -> 5 | O84: =IF(I84="O",SUMPRODUCT(($S$24:$V$46)*($S$21:$V$21=D84)*($C$24:$C$46=M84))/COUNTIF($N$83:$N$86,N84),SUMPRODUCT(($E$24:$R$46)*($E$20:$R$20=I84)*($C$24:$C$46=M84))/COUNTIF($N$83:$N$86,N84)) -> 0
D85: 3 | E85: Applicant 3 | F85: =IF(OR(G54="N/A",G54=0),0,IF(G54="Non App","Non Applicant","Applicant "&RIGHT(G54,1))) -> 0 | G85: =Calc!M30 -> 0 | H85: =SUMIFS($G$83:$G$86,$E$83:$E$86,E85)+SUMIFS($G$83:$G$86,$F$83:$F$86,E85) -> 0 | I85: =IF(AND(H85>=$D$59,H85<=$E$59),$F$59,IF(AND(H85>=$D$60,H85<=$E$60),$F$60,IF(AND(H85>=$D$61,H85<=$E$61),$F$61,IF(AND(H85>=$D$62,H85<=$E$62),$F$62,IF(AND(H85>=$D$63,H85<=$E$63),$F$63,IF(AND(H85>=$D$64,H85<=$E$64),$F$64,IF(AND(H85>=$D$65,H85<=$E$65),$F$65,IF(AND(H85>=$D$66,H85<=$E$66),$F$66,IF(AND(H85>=$D$67,H85<=$E$67),$F$67,IF(AND(H85>=$D$68,H85<=$E$68),$F$68,IF(AND(H85>=$D$69,H85<=$E$69),$F$69,IF(AND(H85>=$D$70,H85<=$E$70),$F$70,IF(AND(H85>=$D$71,H85<=$E$71),$F$71,IF(AND(H85>=$D$72,H85<=$E$72),$F$72,IF(H85>=$D$73,$F$73))))))))))))))) -> A | J85: 0 | K85: =Calc!AE25 -> 0 | L85: 0 | M85: 00 | N85: =SUMPRODUCT(($E$76:$J$79)*($E$75:$J$75=F85)*($D$76:$D$79=E85)) -> 8 | O85: =IF(I85="O",SUMPRODUCT(($S$24:$V$46)*($S$21:$V$21=D85)*($C$24:$C$46=M85))/COUNTIF($N$83:$N$86,N85),SUMPRODUCT(($E$24:$R$46)*($E$20:$R$20=I85)*($C$24:$C$46=M85))/COUNTIF($N$83:$N$86,N85)) -> 0
D86: 4 | E86: Applicant 4 | F86: =IF(OR(G55="N/A",G55=0),0,IF(G55="Non App","Non Applicant","Applicant "&RIGHT(G55,1))) -> 0 | G86: =Calc!P30 -> 0 | H86: =SUMIFS($G$83:$G$86,$E$83:$E$86,E86)+SUMIFS($G$83:$G$86,$F$83:$F$86,E86) -> 0 | I86: =IF(AND(H86>=$D$59,H86<=$E$59),$F$59,IF(AND(H86>=$D$60,H86<=$E$60),$F$60,IF(AND(H86>=$D$61,H86<=$E$61),$F$61,IF(AND(H86>=$D$62,H86<=$E$62),$F$62,IF(AND(H86>=$D$63,H86<=$E$63),$F$63,IF(AND(H86>=$D$64,H86<=$E$64),$F$64,IF(AND(H86>=$D$65,H86<=$E$65),$F$65,IF(AND(H86>=$D$66,H86<=$E$66),$F$66,IF(AND(H86>=$D$67,H86<=$E$67),$F$67,IF(AND(H86>=$D$68,H86<=$E$68),$F$68,IF(AND(H86>=$D$69,H86<=$E$69),$F$69,IF(AND(H86>=$D$70,H86<=$E$70),$F$70,IF(AND(H86>=$D$71,H86<=$E$71),$F$71,IF(AND(H86>=$D$72,H86<=$E$72),$F$72,IF(H86>=$D$73,$F$73))))))))))))))) -> A | J86: 0 | K86: =Calc!AE26 -> 0 | L86: 0 | M86: 00 | N86: =SUMPRODUCT(($E$76:$J$79)*($E$75:$J$75=F86)*($D$76:$D$79=E86)) -> 10 | O86: =IF(I86="O",SUMPRODUCT(($S$24:$V$46)*($S$21:$V$21=D86)*($C$24:$C$46=M86))/COUNTIF($N$83:$N$86,N86),SUMPRODUCT(($E$24:$R$46)*($E$20:$R$20=I86)*($C$24:$C$46=M86))/COUNTIF($N$83:$N$86,N86)) -> 0
O87: =SUM(O83:O86) -> 0
M89: Annual Benchmark | O89: =O87*52 -> 0
M90: Annual HEM Declared | O90: =Calc!AF28*12 -> 0
M91: Annual non-HEM Declared | O91: =Calc!AF30*12 -> 0
M92: Max | O92: =MAX(O89:O90)+O91 -> 0

Sheet Overview (hidden)
B2: Spreadsheet Name | G2: Gateway Capacity Calculator
B4: Storage Location
B6: Spreadsheet Owner Name / Position | G6: Senior Manager Credit & Operational Risk
B8: Department | G8: Credit and Operational Risk
B10: Purpose of the Spreadsheet | G10: Capacity calculation for home loans
B12: Major EUC | G12: Yes
B14: Level of Confidentiality | G14: Internal and broker use
B16: Security / Backup | G16: System backup
B18: Inputs | G18: Credit policy, HEM, tax rates, interest rates, customer data
B20: Outputs | G20: NIS output
B22: Controls | G22: Calculator definitions and management procedure Change register Calculators are reviewed by before release The spreadsheets are password protected so no unauthorised changes can occur.
B24: Version Number | G24: 2023.1
B26: Last Annual Review
B28: Latest Changes | G28: 13/2/2018 - Method of calculating existing mortgage loan repayments 1/3/2019 - Bridging/construction assessed at buffered rate. Credit cards assessed at 3.82% pa. Latest HEM. 26/8/2019 - HEM, floor rate, margin, location category 4/11/2019 - HEM, location category 4/2/2020 - Change to NIS and D/I, new location category 14/4/2020 - HEM and location category changes 29/6/2020 - HEM and location category changes 2/11/2020 - income adjusted HEM and location categories 18/12/2020 - NIS/DIR change, floor reduced to 5%, new HEM, location categories 17/3/2021 - negative gearing, SE averaging, HEM, location categories 24/5/2021 - Added green products 21/6/2021 - Updated HEM and location categories 24/9/2021 - Updated HEM, location categories and income error correction 28/10/2021 - Margin rate increased to 3.00% 1/2/2022 - Updated HEM, location categories and change to DIR calculation 5/2/2022 - Error corrected in max loan amount 1/6/2022 - New location category matrix, updated HEM 4/7/2022 - New location categories, casual employment now 100% 16/12/2022 - New location categories, HEM 26/5/2023 - Location categories, HEM, chage to calculations of existing liabilites, split HEM, alternative rental income 29/9/2023 - HEM, location categories 29/3/2024 - HEM, location categories, PL rate
